[Event "Titled Tuesday Blitz March 15 Late 2022"]
[White "Kobalia, Mikhail"]
[Black "Iskusnyh, Sergei"]
[WhiteFideId "4119150"]
[BlackFideId "4120027"]
[WhiteElo "2667"]
[BlackElo "2492"]
[Result "1-0"]
[Round "02"]
[TimeControl "180+1"]
[Date "2022.03.16"]
[WhiteClock "0:00:36"]
[BlackClock "0:00:05"]

1. e4 {[%clk 0:02:57]}  e6 {[%clk 0:02:59]} 2. d3 {[%clk 0:02:56]}  c5 {[%clk 0:02:58]} 3. Nf3 {[%clk 0:02:55]}  Nc6 {[%clk 0:02:58]} 4. g3 {[%clk 0:02:55]}  g6 {[%clk 0:02:58]} 5. Bg5 {[%clk 0:02:52]}  Qb6 {[%clk 0:02:46]} 6. Nbd2 {[%clk 0:02:49]}  Bg7 {[%clk 0:02:42]} 7. Nc4 {[%clk 0:02:49]}  Qc7 {[%clk 0:02:39]} 8. Bg2 {[%clk 0:02:44]}  h6 {[%clk 0:02:37]} 9. Be3 {[%clk 0:02:34]}  d6 {[%clk 0:02:24]} 10. Qd2 {[%clk 0:02:18]}  Nge7 {[%clk 0:02:14]} 11. O-O {[%clk 0:02:13]}  b5 {[%clk 0:02:02]} 12. Na3 {[%clk 0:02:12]}  Rb8 {[%clk 0:02:01]} 13. c3 {[%clk 0:02:12]}  Ba6 {[%clk 0:01:31]} 14. Nc2 {[%clk 0:02:10]}  b4 {[%clk 0:01:30]} 15. Rfd1 {[%clk 0:02:02]}  bxc3 {[%clk 0:01:28]} 16. bxc3 {[%clk 0:02:01]}  Qa5 {[%clk 0:01:28]} 17. d4 {[%clk 0:01:59]}  cxd4 {[%clk 0:01:22]} 18. cxd4 {[%clk 0:02:00]}  Qxd2 {[%clk 0:01:22]} 19. Rxd2 {[%clk 0:02:00]}  O-O {[%clk 0:01:17]} 20. Rad1 {[%clk 0:01:51]}  d5 {[%clk 0:01:13]} 21. Ne5 {[%clk 0:01:40]}  Nxe5 {[%clk 0:00:47]} 22. dxe5 {[%clk 0:01:40]}  Bxe5 {[%clk 0:00:29]} 23. Bxh6 {[%clk 0:01:39]}  Rfc8 {[%clk 0:00:27]} 24. exd5 {[%clk 0:01:34]}  Nxd5 {[%clk 0:00:27]} 25. Bxd5 {[%clk 0:01:28]}  exd5 {[%clk 0:00:27]} 26. Rxd5 {[%clk 0:01:29]}  Rxc2 {[%clk 0:00:19]} 27. Rxe5 {[%clk 0:01:28]}  Rxa2 {[%clk 0:00:19]} 28. Bg5 {[%clk 0:01:20]}  Bc4 {[%clk 0:00:17]} 29. Bf6 {[%clk 0:01:13]}  Be6 {[%clk 0:00:17]} 30. Rb5 {[%clk 0:01:11]}  Ra8 {[%clk 0:00:16]} 31. Rdb1 {[%clk 0:01:09]}  Rc2 {[%clk 0:00:13]} 32. Kg2 {[%clk 0:01:00]}  Rc6 {[%clk 0:00:12]} 33. Ba1 {[%clk 0:00:54]}  a6 {[%clk 0:00:12]} 34. R5b4 {[%clk 0:00:54]}  Bd5+ {[%clk 0:00:11]} 35. Kg1 {[%clk 0:00:52]}  a5 {[%clk 0:00:11]} 36. Rh4 {[%clk 0:00:51]}  f6 {[%clk 0:00:09]} 37. Rf4 {[%clk 0:00:46]}  Raa6 {[%clk 0:00:06]} 38. Rb8+ {[%clk 0:00:40]}  Kf7 {[%clk 0:00:05]} 39. Rb7+ {[%clk 0:00:37]}  Ke6 {[%clk 0:00:05]} 40. Rxf6# {[%clk 0:00:36]} 1-0


[Site "https://www.chess.com"]

[Event "Titled Tuesday Blitz March 15 Late 2022"]
[White "Koutlas, Nikolaos"]
[Black "Taboas Rodriguez, Daniel"]
[WhiteFideId "25827138"]
[BlackFideId "2208466"]
[WhiteElo "1610"]
[BlackElo "2429"]
[Result "0-1"]
[Round "02"]
[TimeControl "180+1"]
[Date "2022.03.16"]
[WhiteClock "0:00:04"]
[BlackClock "0:01:05"]

1. c4 {[%clk 0:02:59]}  Nf6 {[%clk 0:02:58]} 2. Nc3 {[%clk 0:02:57]}  g6 {[%clk 0:02:57]} 3. g3 {[%clk 0:02:53]}  Bg7 {[%clk 0:02:57]} 4. Bg2 {[%clk 0:02:54]}  O-O {[%clk 0:02:57]} 5. d3 {[%clk 0:02:54]}  c5 {[%clk 0:02:57]} 6. e4 {[%clk 0:02:50]}  Nc6 {[%clk 0:02:57]} 7. Nge2 {[%clk 0:02:51]}  d6 {[%clk 0:02:57]} 8. O-O {[%clk 0:02:50]}  Bg4 {[%clk 0:02:55]} 9. h3 {[%clk 0:02:50]}  Bxe2 {[%clk 0:02:55]} 10. Nxe2 {[%clk 0:02:50]}  Ne8 {[%clk 0:02:56]} 11. Rb1 {[%clk 0:02:48]}  Nc7 {[%clk 0:02:56]} 12. a3 {[%clk 0:02:48]}  a5 {[%clk 0:02:56]} 13. f4 {[%clk 0:02:32]}  Ne6 {[%clk 0:02:55]} 14. g4 {[%clk 0:02:30]}  Ned4 {[%clk 0:02:54]} 15. Ng3 {[%clk 0:02:30]}  e6 {[%clk 0:02:52]} 16. f5 {[%clk 0:02:16]}  Qh4 {[%clk 0:02:51]} 17. Nh1 {[%clk 0:01:36]}  exf5 {[%clk 0:02:45]} 18. exf5 {[%clk 0:01:33]}  Rae8 {[%clk 0:02:42]} 19. Nf2 {[%clk 0:01:05]}  Ne2+ {[%clk 0:02:40]} 20. Kh1 {[%clk 0:01:02]}  Ng3+ {[%clk 0:02:33]} 21. Kh2 {[%clk 0:01:02]}  Be5 {[%clk 0:02:31]} 22. Kg1 {[%clk 0:00:48]}  Nd4 {[%clk 0:02:27]} 23. Re1 {[%clk 0:00:37]}  Bf6 {[%clk 0:02:03]} 24. Ne4 {[%clk 0:00:22]}  Nxe4 {[%clk 0:02:01]} 25. dxe4 {[%clk 0:00:16]}  Be5 {[%clk 0:01:56]} 26. Re3 {[%clk 0:00:09]}  Nc6 {[%clk 0:01:52]} 27. Rd3 {[%clk 0:00:06]}  Bd4+ {[%clk 0:01:52]} 28. Be3 {[%clk 0:00:06]}  Re5 {[%clk 0:01:49]} 29. Rxd4 {[%clk 0:00:04]}  Nxd4 {[%clk 0:01:50]} 30. Bxd4 {[%clk 0:00:05]}  cxd4 {[%clk 0:01:50]} 31. Qxd4 {[%clk 0:00:05]}  Qe7 {[%clk 0:01:42]} 32. Rd1 {[%clk 0:00:04]}  Rd8 {[%clk 0:01:38]} 33. g5 {[%clk 0:00:03]}  Qxg5 {[%clk 0:01:35]} 34. fxg6 {[%clk 0:00:03]}  hxg6 {[%clk 0:01:35]} 35. Kh1 {[%clk 0:00:03]}  Qe7 {[%clk 0:01:34]} 36. b4 {[%clk 0:00:03]}  axb4 {[%clk 0:01:34]} 37. axb4 {[%clk 0:00:04]}  Rc8 {[%clk 0:01:30]} 38. Qd3 {[%clk 0:00:02]}  Qe6 {[%clk 0:01:30]} 39. Bf1 {[%clk 0:00:02]}  Rh5 {[%clk 0:01:26]} 40. Qxd6 {[%clk 0:00:02]}  Qxe4+ {[%clk 0:01:24]} 41. Kh2 {[%clk 0:00:02]}  Rf5 {[%clk 0:01:14]} 42. Bg2 {[%clk 0:00:03]}  Rf2 {[%clk 0:01:10]} 43. Qg3 {[%clk 0:00:03]}  Qe2 {[%clk 0:01:08]} 44. c5 {[%clk 0:00:02]}  Rxg2+ {[%clk 0:01:07]} 45. Qxg2 {[%clk 0:00:03]}  Qxd1 {[%clk 0:01:07]} 46. Qxb7 {[%clk 0:00:04]}  Re8 {[%clk 0:01:05]} 0-1


[Site "https://www.chess.com"]

[Event "Titled Tuesday Blitz March 15 Late 2022"]
[White "Kujawski, Adam"]
[Black "Kadam, Om Manish"]
[WhiteFideId "1100920"]
[BlackFideId "45076294"]
[WhiteElo "2053"]
[BlackElo "1729"]
[Result "1-0"]
[Round "02"]
[TimeControl "180+1"]
[Date "2022.03.16"]
[WhiteClock "0:00:13"]
[BlackClock "0:00:10"]

1. e4 {[%clk 0:02:58]}  c6 {[%clk 0:02:56]} 2. d4 {[%clk 0:02:57]}  d5 {[%clk 0:02:57]} 3. Nc3 {[%clk 0:02:58]}  dxe4 {[%clk 0:02:57]} 4. Nxe4 {[%clk 0:02:58]}  Bf5 {[%clk 0:02:58]} 5. Ng3 {[%clk 0:02:58]}  Bg6 {[%clk 0:02:58]} 6. h4 {[%clk 0:02:58]}  h6 {[%clk 0:02:59]} 7. Nf3 {[%clk 0:02:58]}  Nd7 {[%clk 0:02:59]} 8. h5 {[%clk 0:02:59]}  Bh7 {[%clk 0:02:59]} 9. Bd3 {[%clk 0:02:59]}  Bxd3 {[%clk 0:02:59]} 10. Qxd3 {[%clk 0:03:00]}  Ngf6 {[%clk 0:03:00]} 11. Bd2 {[%clk 0:02:59]}  e6 {[%clk 0:03:01]} 12. Ne4 {[%clk 0:02:59]}  Nxe4 {[%clk 0:03:00]} 13. Qxe4 {[%clk 0:02:59]}  Nf6 {[%clk 0:03:01]} 14. Qe2 {[%clk 0:02:59]}  Be7 {[%clk 0:03:01]} 15. O-O-O {[%clk 0:02:59]}  Qd5 {[%clk 0:03:01]} 16. c4 {[%clk 0:02:57]}  Qe4 {[%clk 0:03:01]} 17. Qxe4 {[%clk 0:02:56]}  Nxe4 {[%clk 0:03:02]} 18. Be1 {[%clk 0:02:56]}  Bf6 {[%clk 0:02:59]} 19. Ne5 {[%clk 0:02:49]}  Rd8 {[%clk 0:02:30]} 20. f3 {[%clk 0:02:44]}  Nd6 {[%clk 0:02:29]} 21. b3 {[%clk 0:02:38]}  O-O {[%clk 0:02:16]} 22. g4 {[%clk 0:02:32]}  c5 {[%clk 0:02:15]} 23. dxc5 {[%clk 0:02:06]}  Bxe5 {[%clk 0:02:14]} 24. cxd6 {[%clk 0:02:05]}  Bxd6 {[%clk 0:02:15]} 25. Bf2 {[%clk 0:02:02]}  a6 {[%clk 0:02:14]} 26. Kc2 {[%clk 0:01:57]}  Be7 {[%clk 0:02:02]} 27. Bb6 {[%clk 0:01:53]}  Rde8 {[%clk 0:00:59]} 28. Rd7 {[%clk 0:01:48]}  f5 {[%clk 0:00:59]} 29. Rxb7 {[%clk 0:01:28]}  fxg4 {[%clk 0:00:58]} 30. fxg4 {[%clk 0:01:28]}  Rf4 {[%clk 0:00:49]} 31. Rg1 {[%clk 0:01:17]}  Bf6 {[%clk 0:00:42]} 32. Rg2 {[%clk 0:01:08]}  e5 {[%clk 0:00:38]} 33. c5 {[%clk 0:01:08]}  Re6 {[%clk 0:00:22]} 34. Rd7 {[%clk 0:00:20]}  e4 {[%clk 0:00:20]} 35. Rdd2 {[%clk 0:00:19]}  e3 {[%clk 0:00:20]} 36. Rde2 {[%clk 0:00:19]}  Bd4 {[%clk 0:00:20]} 37. Kd3 {[%clk 0:00:17]}  Re5 {[%clk 0:00:15]} 38. b4 {[%clk 0:00:13]}  Kh7 {[%clk 0:00:16]} 39. a4 {[%clk 0:00:11]}  Ba1 {[%clk 0:00:15]} 40. Rxe3 {[%clk 0:00:07]}  Rd4+ {[%clk 0:00:15]} 41. Ke2 {[%clk 0:00:06]}  Rxe3+ {[%clk 0:00:15]} 42. Kxe3 {[%clk 0:00:06]}  Rxb4 {[%clk 0:00:16]} 43. Rc2 {[%clk 0:00:05]}  Bf6 {[%clk 0:00:14]} 44. a5 {[%clk 0:00:05]}  Bg5+ {[%clk 0:00:11]} 45. Kf3 {[%clk 0:00:04]}  Rf4+ {[%clk 0:00:12]} 46. Kg3 {[%clk 0:00:04]}  Rf8 {[%clk 0:00:12]} 47. c6 {[%clk 0:00:04]}  Rc8 {[%clk 0:00:12]} 48. c7 {[%clk 0:00:05]}  Be7 {[%clk 0:00:12]} 49. Kf3 {[%clk 0:00:05]}  Bd6 {[%clk 0:00:12]} 50. Ke4 {[%clk 0:00:05]}  Kg8 {[%clk 0:00:12]} 51. Kd5 {[%clk 0:00:06]}  Bg3 {[%clk 0:00:12]} 52. Ke6 {[%clk 0:00:06]}  Bxc7 {[%clk 0:00:10]} 53. Rxc7 {[%clk 0:00:05]}  Re8+ {[%clk 0:00:10]} 54. Re7 {[%clk 0:00:05]}  Rf8 {[%clk 0:00:11]} 55. Bd4 {[%clk 0:00:06]}  Rf4 {[%clk 0:00:11]} 56. Rxg7+ {[%clk 0:00:06]}  Kf8 {[%clk 0:00:11]} 57. Rd7 {[%clk 0:00:05]}  Ke8 {[%clk 0:00:11]} 58. Be5 {[%clk 0:00:06]}  Rxg4 {[%clk 0:00:07]} 59. Rh7 {[%clk 0:00:06]}  Rg8 {[%clk 0:00:07]} 60. Rxh6 {[%clk 0:00:06]}  Rf8 {[%clk 0:00:03]} 61. Rh8 {[%clk 0:00:06]}  Rxh8 {[%clk 0:00:03]} 62. Bxh8 {[%clk 0:00:07]}  Kf8 {[%clk 0:00:04]} 63. Bf6 {[%clk 0:00:07]}  Kg8 {[%clk 0:00:05]} 64. h6 {[%clk 0:00:07]}  Kh7 {[%clk 0:00:05]} 65. Bg7 {[%clk 0:00:08]}  Kg6 {[%clk 0:00:05]} 66. Kd5 {[%clk 0:00:09]}  Kh7 {[%clk 0:00:05]} 67. Kc6 {[%clk 0:00:09]}  Kg6 {[%clk 0:00:06]} 68. Kb6 {[%clk 0:00:10]}  Kh7 {[%clk 0:00:07]} 69. Kxa6 {[%clk 0:00:10]}  Kg6 {[%clk 0:00:08]} 70. Kb6 {[%clk 0:00:11]}  Kh7 {[%clk 0:00:09]} 71. a6 {[%clk 0:00:11]}  Kg6 {[%clk 0:00:10]} 72. a7 {[%clk 0:00:12]}  Kh7 {[%clk 0:00:10]} 73. a8=Q {[%clk 0:00:12]}  Kg6 {[%clk 0:00:11]} 74. Qe8+ {[%clk 0:00:13]}  Kh7 {[%clk 0:00:12]} 75. Qe4+ {[%clk 0:00:12]}  Kg8 {[%clk 0:00:12]} 76. Bd4 {[%clk 0:00:13]}  Kf8 {[%clk 0:00:10]} 77. Qf5+ {[%clk 0:00:13]}  Kg8 {[%clk 0:00:11]} 78. Qg6+ {[%clk 0:00:12]}  Kf8 {[%clk 0:00:10]} 79. Qg7+ {[%clk 0:00:12]}  Ke8 {[%clk 0:00:10]} 80. Bc5 {[%clk 0:00:12]}  Kd8 {[%clk 0:00:09]} 81. Qe7+ {[%clk 0:00:12]}  Kc8 {[%clk 0:00:10]} 82. Qc7# {[%clk 0:00:13]} 1-0


[Site "https://www.chess.com"]

[Event "Titled Tuesday Blitz March 15 Late 2022"]
[White "Lazavik, Denis"]
[Black "Maltsevskaya, Aleksandra"]
[WhiteFideId "13515110"]
[BlackFideId "24174041"]
[WhiteElo "2437"]
[BlackElo "2241"]
[Result "1-0"]
[Round "02"]
[TimeControl "180+1"]
[Date "2022.03.15"]
[WhiteClock "0:01:26"]
[BlackClock "0:01:14"]

1. d4 {[%clk 0:03:00]}  Nf6 {[%clk 0:02:17]} 2. c4 {[%clk 0:03:00]}  g6 {[%clk 0:02:16]} 3. g3 {[%clk 0:02:58]}  Bg7 {[%clk 0:02:16]} 4. Bg2 {[%clk 0:02:58]}  O-O {[%clk 0:02:17]} 5. Nc3 {[%clk 0:02:59]}  d6 {[%clk 0:02:17]} 6. Nf3 {[%clk 0:03:00]}  Nbd7 {[%clk 0:02:18]} 7. O-O {[%clk 0:03:00]}  e5 {[%clk 0:02:19]} 8. e4 {[%clk 0:03:01]}  exd4 {[%clk 0:02:19]} 9. Nxd4 {[%clk 0:03:02]}  Nc5 {[%clk 0:02:20]} 10. h3 {[%clk 0:03:02]}  Re8 {[%clk 0:02:20]} 11. Re1 {[%clk 0:03:02]}  Bd7 {[%clk 0:02:20]} 12. Rb1 {[%clk 0:03:01]}  a5 {[%clk 0:02:20]} 13. b3 {[%clk 0:03:01]}  h6 {[%clk 0:02:15]} 14. Rb2 {[%clk 0:02:49]}  Qc8 {[%clk 0:02:10]} 15. Kh2 {[%clk 0:02:47]}  a4 {[%clk 0:02:10]} 16. Rd2 {[%clk 0:02:27]}  axb3 {[%clk 0:02:09]} 17. axb3 {[%clk 0:02:28]}  Ne6 {[%clk 0:02:05]} 18. Nxe6 {[%clk 0:02:27]}  Bxe6 {[%clk 0:02:06]} 19. Bb2 {[%clk 0:02:27]}  Nd7 {[%clk 0:01:59]} 20. f4 {[%clk 0:02:24]}  Nc5 {[%clk 0:01:56]} 21. b4 {[%clk 0:02:18]}  Nd7 {[%clk 0:01:50]} 22. Nd5 {[%clk 0:02:17]}  c6 {[%clk 0:01:44]} 23. Bxg7 {[%clk 0:02:14]}  Kxg7 {[%clk 0:01:45]} 24. Ne3 {[%clk 0:02:14]}  Nb6 {[%clk 0:01:42]} 25. Rxd6 {[%clk 0:02:12]}  Qc7 {[%clk 0:01:25]} 26. f5 {[%clk 0:02:04]}  Nxc4 {[%clk 0:01:18]} 27. Qd4+ {[%clk 0:01:47]}  Kg8 {[%clk 0:01:17]} 28. Nxc4 {[%clk 0:01:29]}  Bxc4 {[%clk 0:01:16]} 29. fxg6 {[%clk 0:01:29]}  Rad8 {[%clk 0:01:14]} 30. Rxd8 {[%clk 0:01:26]} 1-0


[Site "https://www.chess.com"]

[Event "Titled Tuesday Blitz March 15 Late 2022"]
[White "Lehtosaari, Mauri"]
[Black "Piliczewski, Bogusz"]
[WhiteFideId "501999"]
[BlackFideId "1104144"]
[WhiteElo "2476"]
[BlackElo "1896"]
[Result "1-0"]
[Round "02"]
[TimeControl "180+1"]
[Date "2022.03.16"]
[WhiteClock "0:00:15"]
[BlackClock "0:00:01"]

1. d4 {[%clk 0:03:00]}  d5 {[%clk 0:02:59]} 2. Nf3 {[%clk 0:03:00]}  Nf6 {[%clk 0:02:57]} 3. Bg5 {[%clk 0:03:00]}  Ne4 {[%clk 0:02:56]} 4. Bf4 {[%clk 0:03:00]}  Bf5 {[%clk 0:02:56]} 5. Nbd2 {[%clk 0:02:58]}  e6 {[%clk 0:02:55]} 6. h3 {[%clk 0:02:57]}  Bd6 {[%clk 0:02:54]} 7. e3 {[%clk 0:02:56]}  Bxf4 {[%clk 0:02:49]} 8. exf4 {[%clk 0:02:57]}  Nd7 {[%clk 0:02:47]} 9. c3 {[%clk 0:02:56]}  h6 {[%clk 0:02:43]} 10. Qb3 {[%clk 0:02:52]}  Rb8 {[%clk 0:02:38]} 11. Be2 {[%clk 0:02:52]}  O-O {[%clk 0:02:36]} 12. O-O {[%clk 0:02:50]}  c5 {[%clk 0:02:32]} 13. Nxe4 {[%clk 0:02:46]}  dxe4 {[%clk 0:02:25]} 14. Ne5 {[%clk 0:02:41]}  cxd4 {[%clk 0:02:22]} 15. cxd4 {[%clk 0:02:40]}  Nf6 {[%clk 0:02:15]} 16. Rfd1 {[%clk 0:02:34]}  Nd5 {[%clk 0:02:13]} 17. Qg3 {[%clk 0:02:32]}  Qd6 {[%clk 0:01:58]} 18. a3 {[%clk 0:02:27]}  f6 {[%clk 0:01:52]} 19. Ng4 {[%clk 0:02:23]}  Qxf4 {[%clk 0:01:47]} 20. Qb3 {[%clk 0:02:07]}  Bxg4 {[%clk 0:01:32]} 21. Bxg4 {[%clk 0:02:06]}  f5 {[%clk 0:01:31]} 22. Be2 {[%clk 0:02:03]}  Qd6 {[%clk 0:01:29]} 23. Rac1 {[%clk 0:01:59]}  Rfd8 {[%clk 0:01:16]} 24. Rd2 {[%clk 0:01:50]}  Qb6 {[%clk 0:01:13]} 25. Qxb6 {[%clk 0:01:41]}  Nxb6 {[%clk 0:01:08]} 26. Rc7 {[%clk 0:01:39]}  Nd5 {[%clk 0:01:07]} 27. Rc5 {[%clk 0:01:38]}  Rdc8 {[%clk 0:01:01]} 28. Rdc2 {[%clk 0:01:32]}  Ne7 {[%clk 0:00:57]} 29. Bc4 {[%clk 0:01:27]}  Kf7 {[%clk 0:00:55]} 30. b4 {[%clk 0:01:17]}  b6 {[%clk 0:00:48]} 31. Re5 {[%clk 0:00:57]}  Rc6 {[%clk 0:00:36]} 32. b5 {[%clk 0:00:51]}  Rd6 {[%clk 0:00:32]} 33. g4 {[%clk 0:00:49]}  g6 {[%clk 0:00:31]} 34. Bb3 {[%clk 0:00:40]}  Rxd4 {[%clk 0:00:22]} 35. Rxe6 {[%clk 0:00:33]}  Rd3 {[%clk 0:00:15]} 36. Rc7 {[%clk 0:00:28]}  Rxb3 {[%clk 0:00:11]} 37. Rcxe7+ {[%clk 0:00:28]}  Kf8 {[%clk 0:00:10]} 38. Rh7 {[%clk 0:00:25]}  Rxb5 {[%clk 0:00:08]} 39. Rxg6 {[%clk 0:00:20]}  Re8 {[%clk 0:00:03]} 40. Rgxh6 {[%clk 0:00:15]}  fxg4 {[%clk 0:00:01]} 41. hxg4 {[%clk 0:00:15]} 1-0


[Site "https://www.chess.com"]

[Event "Titled Tuesday Blitz March 15 Late 2022"]
[White "Levitskiy, Andrey"]
[Black "Gatterer, Florian"]
[WhiteFideId "14132885"]
[BlackFideId "811688"]
[WhiteElo "2301"]
[BlackElo "2218"]
[Result "0-1"]
[Round "02"]
[TimeControl "180+1"]
[Date "2022.03.16"]
[WhiteClock "0:00:02"]
[BlackClock "0:00:41"]

1. d4 {[%clk 0:03:00]}  Nf6 {[%clk 0:02:59]} 2. Bf4 {[%clk 0:03:00]}  d5 {[%clk 0:02:57]} 3. e3 {[%clk 0:03:01]}  c5 {[%clk 0:02:56]} 4. Nc3 {[%clk 0:03:01]}  a6 {[%clk 0:02:48]} 5. dxc5 {[%clk 0:03:01]}  Nc6 {[%clk 0:02:47]} 6. a3 {[%clk 0:03:01]}  e5 {[%clk 0:02:46]} 7. Bg5 {[%clk 0:03:01]}  Be6 {[%clk 0:02:38]} 8. b4 {[%clk 0:03:00]}  Be7 {[%clk 0:02:36]} 9. Nf3 {[%clk 0:02:55]}  d4 {[%clk 0:02:34]} 10. exd4 {[%clk 0:02:47]}  exd4 {[%clk 0:02:34]} 11. Na4 {[%clk 0:02:35]}  Ne4 {[%clk 0:02:28]} 12. Bxe7 {[%clk 0:02:20]}  Qxe7 {[%clk 0:02:28]} 13. Be2 {[%clk 0:02:11]}  O-O {[%clk 0:02:23]} 14. O-O {[%clk 0:02:10]}  Rad8 {[%clk 0:02:23]} 15. Re1 {[%clk 0:01:59]}  Ng5 {[%clk 0:02:22]} 16. Bc4 {[%clk 0:01:44]}  Qf6 {[%clk 0:02:08]} 17. Bxe6 {[%clk 0:01:30]}  Nxe6 {[%clk 0:02:08]} 18. Nb2 {[%clk 0:00:57]}  Nf4 {[%clk 0:01:59]} 19. Nd3 {[%clk 0:00:56]}  Nd5 {[%clk 0:02:00]} 20. Qd2 {[%clk 0:00:48]}  h6 {[%clk 0:01:58]} 21. Nfe5 {[%clk 0:00:33]}  Rfe8 {[%clk 0:01:54]} 22. Nc4 {[%clk 0:00:27]}  Nc3 {[%clk 0:01:42]} 23. Nd6 {[%clk 0:00:24]}  Rxe1+ {[%clk 0:01:30]} 24. Rxe1 {[%clk 0:00:25]}  Nb5 {[%clk 0:01:29]} 25. Nxb7 {[%clk 0:00:20]}  Rb8 {[%clk 0:01:25]} 26. Nd6 {[%clk 0:00:15]}  Nxd6 {[%clk 0:01:24]} 27. cxd6 {[%clk 0:00:16]}  Qxd6 {[%clk 0:01:24]} 28. Nc5 {[%clk 0:00:13]}  a5 {[%clk 0:01:18]} 29. c3 {[%clk 0:00:08]}  axb4 {[%clk 0:01:18]} 30. cxb4 {[%clk 0:00:03]}  Ra8 {[%clk 0:01:12]} 31. Qd3 {[%clk 0:00:01]}  Qd5 {[%clk 0:01:03]} 32. h3 {[%clk 0:00:01]}  Ne5 {[%clk 0:01:02]} 33. Qe4 {[%clk 0:00:01]}  Qxe4 {[%clk 0:01:02]} 34. Rxe4 {[%clk 0:00:02]}  Nc4 {[%clk 0:01:02]} 35. Rxd4 {[%clk 0:00:02]}  Nxa3 {[%clk 0:01:02]} 36. Nd7 {[%clk 0:00:02]}  Rc8 {[%clk 0:00:57]} 37. Ne5 {[%clk 0:00:02]}  f6 {[%clk 0:00:51]} 38. Ng6 {[%clk 0:00:02]}  Kf7 {[%clk 0:00:50]} 39. Nf4 {[%clk 0:00:02]}  Rc7 {[%clk 0:00:46]} 40. Rd5 {[%clk 0:00:02]}  Rb7 {[%clk 0:00:41]} 0-1


[Site "https://www.chess.com"]

[Event "Titled Tuesday Blitz March 15 Late 2022"]
[White "Lysyj, Igor"]
[Black "Meduri, Aakaash"]
[WhiteFideId "4150120"]
[BlackFideId "2032252"]
[WhiteElo "2611"]
[BlackElo "2096"]
[Result "1-0"]
[Round "02"]
[TimeControl "180+1"]
[Date "2022.03.16"]
[WhiteClock "0:00:33"]
[BlackClock "0:00:11"]

1. d4 {[%clk 0:02:59]}  d5 {[%clk 0:02:57]} 2. c4 {[%clk 0:02:59]}  e6 {[%clk 0:02:57]} 3. Nf3 {[%clk 0:02:59]}  Nf6 {[%clk 0:02:57]} 4. g3 {[%clk 0:02:58]}  c6 {[%clk 0:02:56]} 5. Bg2 {[%clk 0:02:58]}  Be7 {[%clk 0:02:55]} 6. O-O {[%clk 0:02:57]}  O-O {[%clk 0:02:56]} 7. Nc3 {[%clk 0:02:57]}  dxc4 {[%clk 0:02:56]} 8. Ne5 {[%clk 0:02:56]}  Nbd7 {[%clk 0:02:42]} 9. Nxc4 {[%clk 0:02:56]}  Nb6 {[%clk 0:02:42]} 10. Ne5 {[%clk 0:02:54]}  h6 {[%clk 0:02:43]} 11. e4 {[%clk 0:02:51]}  Bd7 {[%clk 0:02:39]} 12. Be3 {[%clk 0:02:49]}  Rc8 {[%clk 0:02:39]} 13. Qb3 {[%clk 0:02:49]}  Qc7 {[%clk 0:02:24]} 14. a4 {[%clk 0:02:41]}  Rcd8 {[%clk 0:02:15]} 15. a5 {[%clk 0:02:38]}  Nc8 {[%clk 0:02:16]} 16. Bf4 {[%clk 0:02:38]}  Bd6 {[%clk 0:02:09]} 17. Nxd7 {[%clk 0:02:34]}  Bxf4 {[%clk 0:02:02]} 18. Nxf6+ {[%clk 0:02:32]}  gxf6 {[%clk 0:02:00]} 19. gxf4 {[%clk 0:02:33]}  Rxd4 {[%clk 0:02:00]} 20. Rad1 {[%clk 0:02:17]}  Rfd8 {[%clk 0:01:59]} 21. Rxd4 {[%clk 0:02:12]}  Rxd4 {[%clk 0:02:00]} 22. Rd1 {[%clk 0:02:12]}  c5 {[%clk 0:01:56]} 23. Rxd4 {[%clk 0:02:09]}  cxd4 {[%clk 0:01:56]} 24. Ne2 {[%clk 0:02:08]}  Qxa5 {[%clk 0:01:47]} 25. Qc4 {[%clk 0:02:01]}  Qe1+ {[%clk 0:01:34]} 26. Bf1 {[%clk 0:02:00]}  Nd6 {[%clk 0:01:34]} 27. Qxd4 {[%clk 0:02:00]}  Nb5 {[%clk 0:01:34]} 28. Qxf6 {[%clk 0:01:57]}  Qb1 {[%clk 0:01:27]} 29. Ng3 {[%clk 0:01:51]}  Qd1 {[%clk 0:01:17]} 30. Qxh6 {[%clk 0:01:15]}  Nd4 {[%clk 0:01:14]} 31. Qg5+ {[%clk 0:01:14]}  Kf8 {[%clk 0:01:14]} 32. Qh6+ {[%clk 0:01:08]}  Ke7 {[%clk 0:01:10]} 33. h4 {[%clk 0:01:06]}  Nf3+ {[%clk 0:01:09]} 34. Kg2 {[%clk 0:01:07]}  Ne1+ {[%clk 0:00:55]} 35. Kh2 {[%clk 0:01:04]}  Nf3+ {[%clk 0:00:40]} 36. Kh3 {[%clk 0:01:04]}  Nd2 {[%clk 0:00:34]} 37. Bg2 {[%clk 0:00:56]}  Qe1 {[%clk 0:00:31]} 38. Qg5+ {[%clk 0:00:54]}  Ke8 {[%clk 0:00:28]} 39. Qb5+ {[%clk 0:00:52]}  Kf8 {[%clk 0:00:28]} 40. Qe2 {[%clk 0:00:50]}  Qc1 {[%clk 0:00:26]} 41. b4 {[%clk 0:00:44]}  a6 {[%clk 0:00:23]} 42. h5 {[%clk 0:00:43]}  b5 {[%clk 0:00:19]} 43. Qe3 {[%clk 0:00:41]}  Qd1 {[%clk 0:00:11]} 44. h6 {[%clk 0:00:34]}  Nc4 {[%clk 0:00:11]} 45. Qc5+ {[%clk 0:00:33]}  Kg8 {[%clk 0:00:12]} 46. Qg5+ {[%clk 0:00:33]}  Kf8 {[%clk 0:00:11]} 47. Qg7+ {[%clk 0:00:33]}  Ke7 {[%clk 0:00:11]} 48. h7 {[%clk 0:00:33]} 1-0


[Site "https://www.chess.com"]

[Event "Titled Tuesday Blitz March 15 Late 2022"]
[White "Mangialardo, Tiago Carvalho"]
[Black "Kovanova, Baira"]
[WhiteFideId "2130718"]
[BlackFideId "4164083"]
[WhiteElo "2071"]
[BlackElo "2190"]
[Result "0-1"]
[Round "02"]
[TimeControl "180+1"]
[Date "2022.03.16"]
[WhiteClock "0:00:03"]
[BlackClock "0:01:16"]

1. e4 {[%clk 0:02:56]}  e5 {[%clk 0:02:59]} 2. Nf3 {[%clk 0:02:56]}  Nc6 {[%clk 0:02:59]} 3. Bb5 {[%clk 0:02:56]}  a6 {[%clk 0:02:58]} 4. Ba4 {[%clk 0:02:56]}  Nge7 {[%clk 0:02:59]} 5. O-O {[%clk 0:02:55]}  g6 {[%clk 0:02:59]} 6. c3 {[%clk 0:02:55]}  Bg7 {[%clk 0:02:59]} 7. d4 {[%clk 0:02:56]}  exd4 {[%clk 0:02:59]} 8. cxd4 {[%clk 0:02:57]}  b5 {[%clk 0:03:00]} 9. Bc2 {[%clk 0:02:56]}  O-O {[%clk 0:02:59]} 10. a4 {[%clk 0:02:54]}  b4 {[%clk 0:02:53]} 11. a5 {[%clk 0:02:40]}  d5 {[%clk 0:02:44]} 12. e5 {[%clk 0:02:35]}  Bg4 {[%clk 0:02:43]} 13. Be3 {[%clk 0:02:34]}  Rb8 {[%clk 0:02:43]} 14. Nbd2 {[%clk 0:02:32]}  Rb5 {[%clk 0:02:39]} 15. Nb3 {[%clk 0:02:29]}  f6 {[%clk 0:02:36]} 16. Bd3 {[%clk 0:02:25]}  Rb8 {[%clk 0:02:34]} 17. exf6 {[%clk 0:02:08]}  Bxf6 {[%clk 0:02:33]} 18. Bxa6 {[%clk 0:02:06]}  Bxf3 {[%clk 0:02:26]} 19. gxf3 {[%clk 0:01:44]}  Nf5 {[%clk 0:02:18]} 20. Rc1 {[%clk 0:01:37]}  Qd6 {[%clk 0:02:17]} 21. Qd2 {[%clk 0:01:08]}  Nh4 {[%clk 0:02:12]} 22. Be2 {[%clk 0:00:58]}  Bg7 {[%clk 0:02:11]} 23. Qc2 {[%clk 0:00:44]}  Qe6 {[%clk 0:01:43]} 24. Bg5 {[%clk 0:00:34]}  Nxf3+ {[%clk 0:01:31]} 25. Bxf3 {[%clk 0:00:29]}  Rxf3 {[%clk 0:01:30]} 26. Qxc6 {[%clk 0:00:21]}  Qg4+ {[%clk 0:01:30]} 27. Kh1 {[%clk 0:00:22]}  Qxg5 {[%clk 0:01:30]} 28. Nd2 {[%clk 0:00:15]}  Qxd2 {[%clk 0:01:26]} 29. Qxd5+ {[%clk 0:00:15]}  Rf7 {[%clk 0:01:24]} 30. Rxc7 {[%clk 0:00:15]}  Rf8 {[%clk 0:01:25]} 31. f4 {[%clk 0:00:12]}  Qxd4 {[%clk 0:01:22]} 32. Qb3 {[%clk 0:00:12]}  Qe4+ {[%clk 0:01:18]} 33. Rf3 {[%clk 0:00:10]}  Kh8 {[%clk 0:01:16]} 34. Rxf7 {[%clk 0:00:09]}  Rxf7 {[%clk 0:01:16]} 35. Qxf7 {[%clk 0:00:02]}  Qxf3+ {[%clk 0:01:16]} 36. Kg1 {[%clk 0:00:03]}  Bd4# {[%clk 0:01:16]} 0-1


[Site "https://www.chess.com"]